[Event "1st Cyprus Chess Tournament 2019"]
[Site "Larnaca"]
[Date "2019.11.02"]
[Round "9.6"]
[White "Tsyn, Igor"]
[Black "Lornye, Pylyp"]
[Result "0-1"]
[ECO "A49"]
[WhiteElo "2129"]
[BlackElo "2284"]
[Annotator "NA RC"]
[PlyCount "96"]
[EventDate "2019.10.25"]
[EventType "swiss"]
[EventCountry "CYP"]
[SourceTitle "playchess.com"]
[Source "ChessBase"]
[SourceQuality "1"]
[TimeControl "5400+30"]

1. Nf3 {[%emt 0:00:00]} Nf6 {[%emt 0:00:00]} 2. d4 {[%emt 0:00:17]} g6 {[%emt 0:00:00]} 3. g3 {[%emt 0:00:09]} Bg7 {[%emt 0:00:22]} 4. Bg2 {[%emt 0:00:10]} O-O {[%emt 0:00:50]} 5. O-O {[%emt 0:00:51]} d6 {[%emt 0:02:33]} 6. Nbd2 {[%emt 0:05:14]} Nbd7 {[%emt 0:03:08]} 7. c3 {[%emt 0:03:03]} e5 {[%emt 0:02:42]} 8. dxe5 {[%emt 0:02:24]} dxe5 {[%emt 0:02:46]} 9. Nc4 {[%emt 0:02:50]} Qe7 {[%emt 0:04:56]} 10. b3 {[%emt 0:02:22]} e4 {[%emt 0:11:03]} 11. Ba3 {[%emt 0:21:34]} Nc5 {[%emt 0:06:08]} 12. Nfd2 {[%emt 0:10:51]} Re8 {[%emt 0:10:17]} 13. Qc2 {[%emt 0:22:35]} Bg4 {[%emt 0:09:08]} 14. Rfe1 {[%emt 0:04:41]} Rad8 {[%emt 0:04:22]} 15. Ne3 {[%emt 0:11:15]} Bc8 {[%emt 0:03:49]} 16. Rad1 {[%emt 0:00:00]} b6 {[%emt 0:01:03]} 17. Ndc4 {[%emt 0:00:54]} h5 {[%emt 0:02:02]} 18. Rd4 {[%emt 0:01:36]} Qe6 {[%emt 0:17:23]} 19. Red1 {[%emt 0:06:21]} Rd7 {[%emt 0:00:37]} 20. Bxc5 {[%emt 0:00:19]} bxc5 {[%emt 0:00:12]} 21. Rxd7 {[%emt 0:00:16]} Bxd7 {[%emt 0:00:12]} 22. Qc1 {[%emt 0:01:46]} Qa6 {[%emt 0:03:18]} 23. Rd2 {[%emt 0:00:24]} Bc6 {[%emt 0:01:02]} 24. Qd1 {[%emt 0:00:40]} Kh7 {[%emt 0:04:59]} 25. a4 {[%emt 0:01:10]} Qc8 {[%emt 0:02:17]} 26. Qc2 {[%emt 0:00:20]} Bh6 {[%emt 0:00:34]} 27. Rd1 {[%emt 0:00:08]} Ng4 {[%emt 0:00:40]} 28. Nd5 {[%emt 0:00:59]} Qf5 {[%emt 0:00:40]} 29. f3 {[%emt 0:00:46]} Bxd5 {[%emt 0:00:58]} 30. fxg4 {[%emt 0:00:01]} hxg4 {[%emt 0:00:11]} 31. Nd2 {[%emt 0:00:36]} Qe6 {[%emt 0:01:15]} 32. c4 {[%emt 0:00:39]} Bc6 {[%emt 0:00:08]} 33. Nf1 {[%emt 0:00:22]} e3 {[%emt 0:00:51]} 34. Bxc6 {[%emt 0:00:15]} Qxc6 {[%emt 0:00:04]} 35. Rd5 {[%emt 0:00:08]} Qf6 {[%emt 0:00:32]} 36. Qd1 {[%emt 0:00:16]} Qf2+ {[%emt 0:00:15]} 37. Kh1 {[%emt 0:00:01]} Re6 {[%emt 0:00:09]} 38. Rxc5 {[%emt 0:01:58]} Rf6 {[%emt 0:00:15]} 39. Rxc7 {[%emt 0:00:05]} Qxf1+ {[%emt 0:00:29]} 40. Qxf1 {[%emt 0:00:01]} Rxf1+ {[%emt 0:00:08]} 41. Kg2 {[%emt 0:00:00]} Rf2+ {[%emt 0:00:07]} 42. Kg1 {[%emt 0:00:00]} Rxe2 {[%emt 0:00:27]} 43. Rxf7+ {[%emt 0:00:20]} Kg8 {[%emt 0:00:31]} 44. Rxa7 {[%emt 0:00:03]} Rb2 {[%emt 0:00:23]} 45. Kf1 {[%emt 0:01:06]} e2+ {[%emt 0:01:05]} 46. Ke1 {[%emt 0:00:07]} Bg7 {[%emt 0:00:03]} 47. Ra8+ {[%emt 0:02:33]} Kh7 {[%emt 0:00:06]} 48. Ra7 {[%emt 0:00:03]} Kh6 {[%emt 0:00:06]} 0-1

[Event "1st Cyprus Chess Tournament 2019"]
[Site "Larnaca"]
[Date "2019.11.02"]
[Round "9.7"]
[White "Velickovski-Nejkovic, Maja"]
[Black "Kochergin, Sergey"]
[Result "1/2-1/2"]
[ECO "B14"]
[WhiteElo "2128"]
[BlackElo "2224"]
[Annotator "NA"]
[PlyCount "59"]
[EventDate "2019.10.25"]
[EventType "swiss"]
[EventCountry "CYP"]
[SourceTitle "playchess.com"]
[Source "ChessBase"]
[SourceQuality "1"]
[TimeControl "5400+30"]

1. c4 {[%emt 0:00:00]} c6 {[%emt 0:00:00]} 2. e4 {[%emt 0:00:04]} d5 {[%emt 0:00:00]} 3. exd5 {[%emt 0:00:17]} cxd5 {[%emt 0:00:00]} 4. d4 {[%emt 0:00:19]} Nf6 {[%emt 0:00:00]} 5. Nc3 {[%emt 0:00:16]} g6 {[%emt 0:00:41]} 6. Nf3 {[%emt 0:01:00]} Bg7 {[%emt 0:01:10]} 7. h3 {[%emt 0:00:16]} O-O {[%emt 0:00:48]} 8. Be3 {[%emt 0:00:44]} b6 {[%emt 0:02:04]} 9. Rc1 {[%emt 0:03:42]} Bb7 {[%emt 0:03:56]} 10. b3 {[%emt 0:02:09]} dxc4 {[%emt 0:00:51]} 11. bxc4 {[%emt 0:00:10]} Nc6 {[%emt 0:04:30]} 12. Be2 {[%emt 0:02:19]} Rc8 {[%emt 0:00:24]} 13. O-O {[%emt 0:01:12]} Na5 {[%emt 0:01:10]} 14. Nd2 {[%emt 0:04:00]} Ba6 {[%emt 0:01:20]} 15. Nb5 {[%emt 0:00:53]} Bxb5 {[%emt 0:02:47]} 16. cxb5 {[%emt 0:00:12]} Qd7 {[%emt 0:01:46]} 17. Nb3 {[%emt 0:07:12]} Rxc1 {[%emt 0:00:32]} 18. Qxc1 {[%emt 0:01:11]} Rc8 {[%emt 0:00:35]} 19. Qb1 {[%emt 0:01:39]} Nc4 {[%emt 0:00:52]} 20. Bxc4 {[%emt 0:00:48]} Rxc4 {[%emt 0:00:04]} 21. Nd2 {[%emt 0:00:15]} Rc8 {[%emt 0:00:38]} 22. Nf3 {[%emt 0:01:08]} Nd5 {[%emt 0:00:19]} 23. Rc1 {[%emt 0:09:12]} Rc7 {[%emt 0:04:19]} 24. Bd2 {[%emt 0:03:10]} Qc8 {[%emt 0:06:15]} 25. Rxc7 {[%emt 0:01:32]} Qxc7 {[%emt 0:00:16]} 26. Qb3 {[%emt 0:01:10]} e6 {[%emt 0:00:42]} 27. a4 {[%emt 0:00:22]} h6 {[%emt 0:07:00]} 28. Qd3 {[%emt 0:03:00]} Kh7 {[%emt 0:03:58]} 29. h4 {[%emt 0:00:22]} Kg8 {[%emt 0:03:26]} 30. g3 {[%emt 0:00:38]} 1/2-1/2

[Event "1st Cyprus Chess Tournament 2019"]
[Site "Larnaca"]
[Date "2019.11.02"]
[Round "9.9"]
[White "Florentiades, Michalis"]
[Black "Ivanov, Mikhail M"]
[Result "0-1"]
[ECO "D02"]
[WhiteElo "2019"]
[BlackElo "2342"]
[Annotator "NA"]
[PlyCount "80"]
[EventDate "2019.10.25"]
[EventType "swiss"]
[EventCountry "CYP"]
[SourceTitle "playchess.com"]
[Source "ChessBase"]
[SourceQuality "1"]
[TimeControl "5400+30"]

1. d4 {[%emt 0:00:00]} d5 {[%emt 0:02:28]} 2. Bf4 {[%emt 0:00:00]} c5 {[%emt 0:00:07]} 3. e3 {[%emt 0:00:11]} Nc6 {[%emt 0:00:04]} 4. Nf3 {[%emt 0:00:09]} Nf6 {[%emt 0:02:28]} 5. Nbd2 {[%emt 0:00:10]} Qb6 {[%emt 0:02:24]} 6. dxc5 {[%emt 0:00:35]} Qxb2 {[%emt 0:01:29]} 7. Rb1 {[%emt 0:00:22]} Qc3 {[%emt 0:03:51]} 8. Bb5 {[%emt 0:00:46]} e6 {[%emt 0:05:58]} 9. O-O {[%emt 0:00:18]} Qxc5 {[%emt 0:05:55]} 10. c4 {[%emt 0:11:16]} a6 {[%emt 0:04:54]} 11. Nb3 {[%emt 0:17:32]} Qa3 {[%emt 0:02:31]} 12. Bxc6+ {[%emt 0:03:28]} bxc6 {[%emt 0:00:04]} 13. Ne5 {[%emt 0:03:29]} Bd6 {[%emt 0:03:21]} 14. Nxc6 {[%emt 0:11:20]} Bxf4 {[%emt 0:00:10]} 15. exf4 {[%emt 0:00:06]} O-O {[%emt 0:00:07]} 16. c5 {[%emt 0:09:33]} Bd7 {[%emt 0:08:35]} 17. Ncd4 {[%emt 0:01:22]} Rfc8 {[%emt 0:02:07]} 18. Qc1 {[%emt 0:04:40]} Qa4 {[%emt 0:01:58]} 19. Rb2 {[%emt 0:01:10]} Bb5 {[%emt 0:01:28]} 20. Nxb5 {[%emt 0:00:32]} axb5 {[%emt 0:00:17]} 21. Qe3 {[%emt 0:03:18]} Ne4 {[%emt 0:04:39]} 22. f3 {[%emt 0:02:00]} Qa3 {[%emt 0:00:47]} 23. Rc2 {[%emt 0:05:07]} Nd6 {[%emt 0:00:27]} 24. Qc3 {[%emt 0:02:36]} Nc4 {[%emt 0:02:57]} 25. Re1 {[%emt 0:02:25]} Qa7 {[%emt 0:05:32]} 26. Kh1 {[%emt 0:01:37]} Qc7 {[%emt 0:00:30]} 27. g3 {[%emt 0:03:34]} Ra4 {[%emt 0:00:36]} 28. Ree2 {[%emt 0:05:56]} Rca8 {[%emt 0:01:37]} 29. Qd3 {[%emt 0:00:59]} g6 {[%emt 0:01:09]} 30. Kg2 {[%emt 0:01:31]} Na3 {[%emt 0:00:37]} 31. Rb2 {[%emt 0:00:34]} Rc4 {[%emt 0:00:25]} 32. h4 {[%emt 0:01:05]} b4 {[%emt 0:06:20]} 33. h5 {[%emt 0:00:56]} Nb5 {[%emt 0:02:54]} 34. hxg6 {[%emt 0:00:20]} hxg6 {[%emt 0:00:05]} 35. Rec2 {[%emt 0:02:42]} Nc3 {[%emt 0:06:01]} 36. Nd2 {[%emt 0:03:08]} Qxc5 {[%emt 0:02:41]} 37. Nxc4 {[%emt 0:00:08]} dxc4 {[%emt 0:00:05]} 38. Qd2 {[%emt 0:00:05]} Nd5 {[%emt 0:00:20]} 39. Rc1 {[%emt 0:02:03]} c3 {[%emt 0:00:45]} 40. Qd3 {[%emt 0:01:08]} Qe3 {[%emt 0:00:53]} 0-1

[Event "1st Cyprus Chess Tournament 2019"]
[Site "Larnaca"]
[Date "2019.11.02"]
[Round "9.10"]
[White "Alsan, Ahmet"]
[Black "Isaakidis, Alexandros"]
[Result "0-1"]
[ECO "B34"]
[WhiteElo "1447"]
[BlackElo "2219"]
[Annotator "NA"]
[PlyCount "106"]
[EventDate "2019.10.25"]
[EventType "swiss"]
[EventCountry "CYP"]
[SourceTitle "playchess.com"]
[Source "ChessBase"]
[SourceQuality "1"]
[TimeControl "5400+30"]

1. e4 {[%emt 0:00:00]} c5 {[%emt 0:00:00]} 2. Nf3 {[%emt 0:00:25]} g6 {[%emt 0:00:00]} 3. d4 {[%emt 0:02:38]} cxd4 {[%emt 0:00:00]} 4. Nxd4 {[%emt 0:00:06]} Bg7 {[%emt 0:00:00]} 5. Nc3 {[%emt 0:00:27]} Nc6 {[%emt 0:00:04]} 6. Be3 {[%emt 0:01:29]} Nf6 {[%emt 0:00:07]} 7. Nxc6 {[%emt 0:03:43]} bxc6 {[%emt 0:00:10]} 8. Be2 {[%emt 0:01:15]} O-O {[%emt 0:00:10]} 9. O-O {[%emt 0:00:05]} d5 {[%emt 0:00:04]} 10. exd5 {[%emt 0:00:29]} Nxd5 {[%emt 0:00:18]} 11. Nxd5 {[%emt 0:01:36]} cxd5 {[%emt 0:00:33]} 12. c3 {[%emt 0:04:59]} Rb8 {[%emt 0:00:23]} 13. Qd2 {[%emt 0:00:36]} Qa5 {[%emt 0:01:28]} 14. a3 {[%emt 0:02:24]} d4 {[%emt 0:04:45]} 15. Bxd4 {[%emt 0:01:30]} Bxd4 {[%emt 0:00:18]} 16. b4 {[%emt 0:03:01]} Bxc3 {[%emt 0:01:18]} 17. Qxc3 {[%emt 0:03:45]} Qb6 {[%emt 0:00:02]} 18. Bf3 {[%emt 0:04:33]} Ba6 {[%emt 0:03:16]} 19. Rfe1 {[%emt 0:00:35]} e6 {[%emt 0:02:57]} 20. h4 {[%emt 0:01:44]} Rbc8 {[%emt 0:01:43]} 21. Qf6 {[%emt 0:06:12]} Rc2 {[%emt 0:13:57]} 22. Bd1 {[%emt 0:04:28]} Rd2 {[%emt 0:02:24]} 23. Re4 {[%emt 0:10:45]} Qd8 {[%emt 0:03:30]} 24. Qxd8 {[%emt 0:12:24]} Rfxd8 {[%emt 0:00:21]} 25. Ba4 {[%emt 0:01:34]} Rc8 {[%emt 0:09:55]} 26. Re3 {[%emt 0:02:50]} Kf8 {[%emt 0:07:52]} 27. Re5 {[%emt 0:02:20]} Be2 {[%emt 0:05:03]} 28. Re1 {[%emt 0:03:13]} Bd3 {[%emt 0:01:00]} 29. Rc5 {[%emt 0:01:43]} Rxc5 {[%emt 0:13:00]} 30. bxc5 {[%emt 0:00:03]} Ra2 {[%emt 0:00:14]} 31. Rc1 {[%emt 0:05:22]} Rxa3 {[%emt 0:02:03]} 32. Bc6 {[%emt 0:00:56]} Rb3 {[%emt 0:01:20]} 33. Kh2 {[%emt 0:01:27]} Rb2 {[%emt 0:03:05]} 34. Rc3 {[%emt 0:00:59]} Bf5 {[%emt 0:02:27]} 35. Ba4 {[%emt 0:00:54]} Rb4 {[%emt 0:01:28]} 36. Bd7 {[%emt 0:01:26]} Rb7 {[%emt 0:03:29]} 37. c6 {[%emt 0:00:32]} Rc7 {[%emt 0:00:02]} 38. Rb3 {[%emt 0:04:36]} Be4 {[%emt 0:02:18]} 39. Rb7 {[%emt 0:01:12]} Rxb7 {[%emt 0:00:10]} 40. cxb7 {[%emt 0:00:39]} Bxb7 {[%emt 0:00:07]} 41. g3 {[%emt 0:00:26]} Ke7 {[%emt 0:00:10]} 42. Ba4 {[%emt 0:00:22]} Kd6 {[%emt 0:00:35]} 43. g4 {[%emt 0:00:32]} Bc6 {[%emt 0:00:16]} 44. Bb3 {[%emt 0:00:13]} a5 {[%emt 0:00:12]} 45. Kg3 {[%emt 0:00:14]} a4 {[%emt 0:00:09]} 46. Ba2 {[%emt 0:00:18]} a3 {[%emt 0:00:14]} 47. Kf4 {[%emt 0:00:34]} Bd5 {[%emt 0:00:47]} 48. Bb1 {[%emt 0:00:04]} f6 {[%emt 0:00:40]} 49. g5 {[%emt 0:00:56]} e5+ {[%emt 0:00:08]} 50. Ke3 {[%emt 0:00:30]} fxg5 {[%emt 0:00:17]} 51. hxg5 {[%emt 0:00:05]} a2 {[%emt 0:00:08]} 52. Bxa2 {[%emt 0:00:26]} Bxa2 {[%emt 0:00:08]} 53. f4 {[%emt 0:00:04]} Bd5 {[%emt 0:00:16]} 0-1

[Event "1st Cyprus Chess Tournament 2019"]
[Site "Larnaca"]
[Date "2019.11.02"]
[Round "9.11"]
[White "Gerasimenyuk, Mikhail"]
[Black "Cherkasova, Marina"]
[Result "1-0"]
[ECO "A48"]
[WhiteElo "2113"]
[BlackElo "2094"]
[Annotator "NA"]
[PlyCount "73"]
[EventDate "2019.10.25"]
[EventType "swiss"]
[EventCountry "CYP"]
[SourceTitle "playchess.com"]
[Source "ChessBase"]
[SourceQuality "1"]
[TimeControl "5400+30"]

1. d4 {[%emt 0:00:00]} Nf6 {[%emt 0:00:00]} 2. Nf3 {[%emt 0:00:00]} g6 {[%emt 0:00:00]} 3. Bg5 {[%emt 0:00:00]} Bg7 {[%emt 0:00:16]} 4. e3 {[%emt 0:00:00]} d6 {[%emt 0:01:31]} 5. Bd3 {[%emt 0:00:02]} Nbd7 {[%emt 0:03:09]} 6. Nbd2 {[%emt 0:01:09]} O-O {[%emt 0:01:54]} 7. h4 {[%emt 0:00:58]} h6 {[%emt 0:03:38]} 8. h5 {[%emt 0:00:12]} Nxh5 {[%emt 0:08:59]} 9. g4 {[%emt 0:01:21]} Nhf6 {[%emt 0:02:01]} 10. Bxh6 {[%emt 0:00:22]} Nxg4 {[%emt 0:01:04]} 11. Bxg7 {[%emt 0:00:27]} Kxg7 {[%emt 0:00:10]} 12. Ng5 {[%emt 0:00:20]} Ndf6 {[%emt 0:00:38]} 13. Qf3 {[%emt 0:00:48]} Nh6 {[%emt 0:12:26]} 14. Qf4 {[%emt 0:01:23]} Nfg4 {[%emt 0:16:23]} 15. Ndf3 {[%emt 0:09:00]} f6 {[%emt 0:05:15]} 16. Qe4 {[%emt 0:02:49]} Qe8 {[%emt 0:06:22]} 17. Ne6+ {[%emt 0:06:40]} Bxe6 {[%emt 0:00:06]} 18. Qxe6 {[%emt 0:00:04]} Qf7 {[%emt 0:00:19]} 19. Bc4 {[%emt 0:02:02]} Qxe6 {[%emt 0:07:22]} 20. Bxe6 {[%emt 0:00:07]} c6 {[%emt 0:01:50]} 21. Ke2 {[%emt 0:02:13]} Rh8 {[%emt 0:07:00]} 22. c4 {[%emt 0:05:28]} f5 {[%emt 0:05:40]} 23. Nh4 {[%emt 0:02:30]} Kf6 {[%emt 0:02:27]} 24. d5 {[%emt 0:01:17]} g5 {[%emt 0:01:16]} 25. Nf3 {[%emt 0:00:45]} Ne5 {[%emt 0:00:33]} 26. Nxg5 {[%emt 0:10:05]} Kxg5 {[%emt 0:01:19]} 27. f4+ {[%emt 0:00:22]} Kf6 {[%emt 0:00:13]} 28. fxe5+ {[%emt 0:00:07]} dxe5 {[%emt 0:04:13]} 29. Rh5 {[%emt 0:00:52]} Kg6 {[%emt 0:00:59]} 30. Rah1 {[%emt 0:00:33]} Raf8 {[%emt 0:00:41]} 31. Kd3 {[%emt 0:03:02]} e4+ {[%emt 0:02:32]} 32. Kd4 {[%emt 0:00:00]} Rh7 {[%emt 0:01:19]} 33. b4 {[%emt 0:00:00]} f4 {[%emt 0:03:15]} 34. Kxe4 {[%emt 0:01:41]} f3 {[%emt 0:00:13]} 35. R5h3 {[%emt 0:00:46]} Ng4 {[%emt 0:01:43]} 36. Bxg4 {[%emt 0:00:26]} f2 {[%emt 0:00:10]} 37. Rxh7 {[%emt 0:00:32]} 1-0

[Event "1st Cyprus Chess Tournament 2019"]
[Site "Larnaca"]
[Date "2019.11.02"]
[Round "9.12"]
[White "Bukhteeva, Viktoria"]
[Black "Grapsa, Georgia"]
[Result "1-0"]
[ECO "A47"]
[WhiteElo "2110"]
[BlackElo "2026"]
[Annotator "NA"]
[PlyCount "81"]
[EventDate "2019.10.25"]
[EventType "swiss"]
[EventCountry "CYP"]
[SourceTitle "playchess.com"]
[Source "ChessBase"]
[SourceQuality "1"]
[TimeControl "5400+30"]

1. d4 {[%emt 0:00:00]} Nf6 {[%emt 0:00:00]} 2. Bf4 {[%emt 0:00:00]} e6 {[%emt 0:00:31]} 3. e3 {[%emt 0:00:00]} b6 {[%emt 0:00:34]} 4. Nf3 {[%emt 0:00:15]} Bb7 {[%emt 0:00:36]} 5. Bd3 {[%emt 0:00:24]} Be7 {[%emt 0:01:45]} 6. O-O {[%emt 0:00:11]} Ne4 {[%emt 0:00:49]} 7. Nbd2 {[%emt 0:00:50]} f5 {[%emt 0:00:35]} 8. Bxe4 {[%emt 0:21:03]} fxe4 {[%emt 0:00:14]} 9. Ne5 {[%emt 0:00:33]} O-O {[%emt 0:00:32]} 10. Qg4 {[%emt 0:01:02]} Kh8 {[%emt 0:08:18]} 11. f3 {[%emt 0:06:56]} d6 {[%emt 0:04:09]} 12. Nec4 {[%emt 0:02:09]} e5 {[%emt 0:07:21]} 13. dxe5 {[%emt 0:05:52]} d5 {[%emt 0:01:09]} 14. Na3 {[%emt 0:00:27]} Bc8 {[%emt 0:13:53]} 15. e6 {[%emt 0:00:25]} Rf6 {[%emt 0:09:28]} 16. fxe4 {[%emt 0:03:06]} Bxe6 {[%emt 0:01:00]} 17. Qe2 {[%emt 0:01:41]} Qc8 {[%emt 0:06:53]} 18. Nb5 {[%emt 0:06:19]} Na6 {[%emt 0:07:17]} 19. exd5 {[%emt 0:06:01]} Bxd5 {[%emt 0:02:07]} 20. e4 {[%emt 0:00:36]} Bc5+ {[%emt 0:02:50]} 21. Be3 {[%emt 0:06:42]} Bxe3+ {[%emt 0:17:04]} 22. Qxe3 {[%emt 0:00:06]} Re6 {[%emt 0:02:08]} 23. Nd4 {[%emt 0:05:09]} Re8 {[%emt 0:00:26]} 24. Nf5 {[%emt 0:00:41]} Be6 {[%emt 0:01:54]} 25. Nxg7 {[%emt 0:05:16]} Kxg7 {[%emt 0:00:50]} 26. Qg5+ {[%emt 0:01:13]} Kh8 {[%emt 0:00:04]} 27. Qf6+ {[%emt 0:00:15]} Kg8 {[%emt 0:00:03]} 28. Rf3 {[%emt 0:03:37]} Qd7 {[%emt 0:02:37]} 29. Rg3+ {[%emt 0:02:34]} Bg4 {[%emt 0:00:06]} 30. h3 {[%emt 0:07:07]} h5 {[%emt 0:00:52]} 31. hxg4 {[%emt 0:02:14]} h4 {[%emt 0:00:48]} 32. Qg5+ {[%emt 0:01:34]} Qg7 {[%emt 0:00:20]} 33. Qd5+ {[%emt 0:01:02]} Kh8 {[%emt 0:01:51]} 34. Rh3 {[%emt 0:02:43]} Qxg4 {[%emt 0:00:43]} 35. Nf3 {[%emt 0:00:12]} Rad8 {[%emt 0:02:41]} 36. Qc4 {[%emt 0:00:53]} Kg7 {[%emt 0:01:43]} 37. Qxa6 {[%emt 0:01:20]} Qxe4 {[%emt 0:00:31]} 38. Qa3 {[%emt 0:01:37]} Rh8 {[%emt 0:02:12]} 39. Qc3+ {[%emt 0:00:09]} Kg6 {[%emt 0:00:18]} 40. Rf1 {[%emt 0:01:09]} Rde8 {[%emt 0:00:50]} 41. Nxh4+ {[%emt 0:00:33]} 1-0